fUST/lending_fUST_20250702
["ID","MTS","AMOUNT","RATE_DAILY","PERIOD"]
[369011628,1751433094598,-168.503222,0.00025158,7]
[369011629,1751433094611,-168.503222,0.00025158,7]
[369011630,1751433094624,-168.503222,0.00025158,7]
[369011631,1751433094640,-168.503222,0.00025158,7]
[369011632,1751433094654,-168.503222,0.00025158,7]
[369011633,1751433094668,-168.503222,0.00025158,7]
[369011634,1751433094681,-168.503222,0.00025158,7]
[369011635,1751433094693,-168.503222,0.00025158,7]
[369011636,1751433094706,-168.503222,0.00025158,7]
[369011637,1751433094719,-168.503222,0.00025158,7]
[369011638,1751433094731,-168.503222,0.00025158,7]
[369011639,1751433094744,-168.503218,0.00025158,7]
[369011640,1751433094756,-768.710393,0.00025158,7]
[369011641,1751433094768,-768.710393,0.00025158,7]
[369011642,1751433094780,-768.710393,0.00025158,7]
[369011643,1751433094794,-768.710393,0.00025158,7]
[369011644,1751433094806,-768.710393,0.00025158,7]
[369011645,1751433094820,-768.710393,0.00025158,7]
[369011646,1751433094835,-768.710393,0.00025158,7]
[369011647,1751433094849,-768.710393,0.00025158,7]
[369011648,1751433094861,-768.710393,0.00025158,7]
[369011649,1751433094875,-768.710393,0.00025158,7]
[369011650,1751433094888,-768.710393,0.00025158,7]
[369011651,1751433094901,-768.710393,0.00025158,7]
[369011652,1751433094913,-768.710393,0.00025158,7]
[369011653,1751433094927,-768.710399,0.00025158,7]
[369011654,1751433094940,-185.367132,0.00025158,7]
[369011655,1751433094952,-185.367132,0.00025158,7]
[369011656,1751433094965,-185.367132,0.00025158,7]
[369011657,1751433094977,-185.367132,0.00025158,7]
[369011658,1751433094989,-185.367132,0.00025158,7]
[369011659,1751433095002,-185.367132,0.00025158,7]
[369011660,1751433095015,-185.367132,0.00025158,7]
[369011661,1751433095029,-185.367132,0.00025158,7]
[369011662,1751433095042,-185.367132,0.00025158,7]
[369011663,1751433095056,-185.367132,0.00025158,7]
[369011664,1751433095069,-185.367132,0.00025158,7]
[369011665,1751433095082,-185.367132,0.00025158,7]
[369011666,1751433095096,-185.367132,0.00025158,7]
[369011667,1751433095109,-185.367124,0.00025158,7]
[369011668,1751433095122,-499.0,0.00025158,2]
[369011669,1751433095135,-1000.0,0.0002516,5]
[369011670,1751433095147,-151.0,0.00025173,7]
[369011671,1751433095159,-151.0,0.00025173,7]
[369011672,1751433095171,-295.878191,0.00025173,7]
[369011673,1751433095184,-239.905057,0.00025173,7]
[369011674,1751433095196,-239.905057,0.00025173,7]
[369011675,1751433095208,-239.905057,0.00025173,7]
[369011676,1751433095220,-239.905057,0.00025173,7]
[369011677,1751433095232,-239.905057,0.00025173,7]
[369011678,1751433095245,-239.905057,0.00025173,7]
[369011679,1751433095257,-239.905057,0.00025173,7]
[369011680,1751433095268,-239.905057,0.00025173,7]
[369011681,1751433095280,-239.905057,0.00025173,7]
[369011682,1751433095293,-239.905057,0.00025173,7]
[369011683,1751433095305,-239.905057,0.00025173,7]
[369011684,1751433095317,-239.905051,0.00025173,7]
[369011685,1751433095329,-209.194205,0.00025173,7]
[369011686,1751433095341,-209.194205,0.00025173,7]
[369011687,1751433095354,-209.194205,0.00025173,7]
[369011688,1751433095367,-209.194205,0.00025173,7]
[369011689,1751433095379,-209.194205,0.00025173,7]
[369011690,1751433095391,-209.194205,0.00025173,7]
[369011691,1751433095403,-209.194205,0.00025173,7]
[369011692,1751433095415,-209.194198,0.00025173,7]
[369011693,1751433095428,-172.509072,0.00025173,7]
[369011694,1751433095440,-172.509072,0.00025173,7]
[369011695,1751433095452,-172.509072,0.00025173,7]
[369011696,1751433095464,-172.509072,0.00025173,7]
[369011697,1751433095476,-172.509072,0.00025173,7]
[369011698,1751433095488,-172.509072,0.00025173,7]
[369011699,1751433095500,-172.509072,0.00025173,7]
[369011700,1751433095513,-172.509062,0.00025173,7]
[369011701,1751433095525,-166.9,0.00025173,2]
[369011702,1751433095537,-441.19122163,0.00025178,2]
[369011703,1751433095549,-1000.0,0.0002518,5]
[369011704,1751433095562,-1122.038369,0.0002518,5]
[369011705,1751433095573,-506.43,0.00025181,4]
[369011706,1751433095586,-2000.0,0.000252,2]
[369011707,1751433095598,-2000.0,0.000252,2]
[369011708,1751433095610,-2000.0,0.000252,2]
[369011709,1751433095622,-213.90888375,0.000252,3]
[369011710,1751433095636,-3581.91,0.000252,7]
[369011711,1751433095648,-399.83,0.000252,7]
[369011712,1751433095660,-165.473611,0.000252,30]
[369011713,1751433095672,-1000.0,0.000252,5]
[369011714,1751433095684,-1000.0,0.000252,5]
[369011715,1751433095696,-161.190978,0.000252,30]
[369011716,1751433095960,-500.0,0.00025204,14]
[369011717,1751433095971,-500.0,0.00025204,14]
[369011718,1751433095980,-500.0,0.00025204,14]
[369011719,1751433095990,-501.12227595,0.00025204,14]
[369011720,1751433096000,-161.190978,0.00025204,7]
[369011721,1751433096010,-160.0,0.0002521,5]
[369011722,1751433096019,-162.01150246,0.0002521,5]
[369011723,1751433096029,-160.0,0.0002521,3]
[369011724,1751433096038,-160.0,0.0002521,5]
[369011725,1751433096048,-245.1,0.0002522,15]
[369011726,1751433096058,-159.3697675,0.00025233,2]
[369011727,1751433096067,-177.6255604,0.00025233,2]
[369011728,1751433096077,-575.597667,0.00025233,2]
[369011729,1751433096086,-153.0,0.00025233,2]
[369011730,1751433096095,-153.0,0.00025233,2]
[369011731,1751433096105,-366.235562,0.00025233,2]
[369011732,1751433096115,-159.3697675,0.00025233,2]
[369011733,1751433096125,-177.6255604,0.00025233,2]
[369011734,1751433096135,-153.0,0.00025233,2]
[369011735,1751433096145,-153.0,0.00025233,2]
[369011736,1751433096155,-575.597667,0.00025233,2]
[369011737,1751433096164,-153.0,0.00025233,2]
[369011738,1751433096175,-153.0,0.00025233,2]
[369011739,1751433096186,-575.597667,0.00025233,2]
[369011740,1751433096195,-575.597667,0.00025233,2]
[369011741,1751433096205,-575.597667,0.00025233,2]
[369011742,1751433096214,-575.597667,0.00025233,2]
[369011743,1751433096224,-575.597667,0.00025233,2]
[369011744,1751433096234,-575.597667,0.00025233,2]
[369011745,1751433096245,-159.2957113,0.00025233,2]
[369011746,1751433096255,-176.8293865,0.00025233,2]
[369011747,1751433096266,-339.2870042,0.00025233,2]
[369011748,1751433096275,-291.006551,0.0002524,2]
[369011749,1751433096285,-291.006551,0.0002524,2]
[369011750,1751433096295,-291.006551,0.0002524,2]
[369011751,1751433096304,-291.006551,0.0002524,2]
[369011752,1751433096314,-291.006551,0.0002524,2]
[369011753,1751433096324,-291.006551,0.0002524,2]
[369011754,1751433096334,-291.006551,0.0002524,2]
[369011755,1751433096343,-291.006543,0.0002524,2]
[369011756,1751433096353,-151.0,0.0002524,7]
[369011757,1751433096363,-151.0,0.0002524,7]
[369011758,1751433096373,-151.0,0.0002524,7]
[369011759,1751433096383,-151.0,0.0002524,7]
[369011760,1751433096392,-151.0,0.0002524,7]
[369011761,1751433096401,-212.325124,0.0002524,7]
[369011762,1751433096411,-494.896241,0.0002524,7]
[369011763,1751433096421,-494.896241,0.0002524,7]
[369011764,1751433096431,-494.896241,0.0002524,7]
[369011765,1751433096441,-494.896241,0.0002524,7]
[369011766,1751433096451,-494.896241,0.0002524,7]
[369011767,1751433096461,-494.896249,0.0002524,7]
[369011768,1751433096471,-152.946531,0.0002524,7]
[369011769,1751433096480,-152.946531,0.0002524,7]
[369011770,1751433096490,-152.946531,0.0002524,7]
[369011771,1751433096499,-152.946522,0.0002524,7]
[369011772,1751433096508,-745568.61533961,0.00025242,20]
[369011773,1751433099051,-460.0,0.00016482,2]
[369011774,1751433099061,-363.5219071,0.00016493,2]
[369011775,1751433099070,-460.0,0.00016756,2]
[369011776,1751433099080,-941.43,0.00016767,2]
[369011777,1751433099089,-460.0,0.0001703,2]
[369011778,1751433099099,-941.43,0.00017041,2]
[369011779,1751433099108,-460.0,0.00017304,2]
[369011780,1751433099117,-941.43,0.00017315,2]
[369011781,1751433099126,-460.0,0.00017578,2]
[369011782,1751433099136,-941.43,0.00017589,2]
[369011783,1751433099146,-460.0,0.00017852,2]
[369011784,1751433099155,-941.43,0.00017863,2]
[369011785,1751433099164,-460.0,0.00018126,2]
[369011786,1751433099173,-941.43,0.00018137,2]
[369011787,1751433099183,-941.43,0.00018411,2]
[369011788,1751433099192,-941.43,0.00018685,2]
[369011789,1751433099202,-67010.27935991,0.00025242,20]
[369011790,1751433099477,-59.06667415,0.00025242,20]
[369011791,1751433099612,-460.0,0.00016493,2]
[369011792,1751433099622,-460.0,0.00016767,2]
[369011793,1751433099636,-500.0,0.00016773,2]
[369011794,1751433099645,-460.0,0.00017041,2]
[369011795,1751433099655,-460.0,0.00017315,2]
[369011796,1751433099664,-460.0,0.00017589,2]
[369011797,1751433099674,-460.0,0.00017863,2]
[369011798,1751433099684,-460.0,0.000184,2]
[369011799,1751433099693,-365.17632308,0.00018674,2]
[369011800,1751433099706,-94.82367692,0.00018674,2]
[369011801,1751433099717,-460.0,0.00018948,2]
[369011802,1751433099726,-941.43,0.00018959,2]
[369011803,1751433099735,-460.0,0.00019222,2]
[369011804,1751433099745,-941.43,0.00019233,2]
[369011805,1751433099754,-460.0,0.00019496,2]
[369011806,1751433099764,-739.19020758,0.00019507,2]
[369011807,1751433099780,-202.23979242,0.00019507,2]
[369011808,1751433099789,-460.0,0.0001977,2]
[369011809,1751433099799,-941.43,0.00019781,2]
[369011810,1751433099808,-460.0,0.00020044,2]
[369011811,1751433099817,-941.43,0.00020055,2]
[369011812,1751433099827,-460.0,0.00020318,2]
[369011813,1751433099836,-941.43,0.00020329,2]
[369011814,1751433099846,-460.0,0.00020592,2]
[369011815,1751433099855,-941.43,0.00020603,2]
[369011816,1751433099865,-263.39451942,0.00020866,2]
[369011817,1751433099875,-941.43,0.00020877,2]
[369011818,1751433099884,-941.43,0.00021151,2]
[369011819,1751433099894,-941.43,0.00021425,2]
[369011820,1751433099904,-14804.9892641,0.00025242,20]
[369011821,1751433099916,-2362.41,0.00025242,20]
[369011822,1751433100054,-473.34154621,0.00016482,2]
[369011823,1751433100064,-460.0,0.00016483,2]
[369011824,1751433100074,-460.0,0.00016493,2]
[369011825,1751433100083,-62.99078695,0.00016493,2]
[369011826,1751433100095,-397.00921305,0.00016493,2]
[369011827,1751433100106,-460.0,0.00016767,2]
[369011829,1751433100115,-460.0,0.00016767,2]
[369011830,1751433100125,-460.0,0.00017041,2]
[369011831,1751433100136,-460.0,0.00017315,2]
[369011832,1751433100146,-941.43,0.00021699,2]
[369011833,1751433100155,-941.43,0.00021973,2]
[369011834,1751433100165,-941.43,0.00022247,2]
[369011835,1751433100174,-941.43,0.00022521,2]
[369011836,1751433100184,-941.43859064,0.00022795,2]
[369011837,1751433100195,-276380.10229511,0.00025242,20]
[369011838,1751433102009,-120679.95546301,0.00025242,20]
[369011840,1751433103056,-167.15945119,0.00016393,2]
[369011841,1751433106471,-225.32241658,0.00016392,2]
[369011842,1751433108620,-74.67758342,0.00016392,2]
[369011843,1751433108647,-83.56261708,0.00016393,2]
[369011844,1751433129131,270.950493,0.00013699,2]
[369011846,1751433167950,-152.09943122,0.00016283,2]
[369011847,1751433170288,-14.33531449,0.00016283,2]
[369011848,1751433177754,303.99655753,0.000161,2]
[369011849,1751433204807,-189.95768716,0.00016293,2]
[369011850,1751433206541,-154.92603876,0.00016293,2]
[369011851,1751433208514,189.95768716,0.000161,2]
[369011852,1751433208779,-169.24106211,0.00016293,2]
[369011853,1751433213548,-152.0,0.00016293,2]
[369011854,1751433214632,-152.70048686,0.00016293,2]
[369011855,1751433216614,-215.7231602,0.00016293,2]
[369011856,1751433221378,-3.30337566,0.00016293,2]
[369011857,1751433233496,400.8329801,0.000159,2]
[369011858,1751433410720,844.59074793,0.000161,2]
[369011860,1751433528059,-172.43474575,0.00016288,2]
[369011861,1751433530409,-199.79247995,0.00016288,2]
[369011862,1751433532733,175.73812141,0.000161,2]
[369011863,1751433534003,-206.03421299,0.00016288,2]
[369011864,1751433535979,240.49978806,0.00015896,2]
[369011865,1751433537062,-168.85741928,0.00016288,2]
[369011866,1751433549544,611.58991024,0.000161,2]
[369011867,1751433580481,463.908439,0.00015389,2]
[369011868,1751433610936,-177.66347564,0.00016288,2]
[369011869,1751433720035,-152.0,0.00016287,2]
[369011870,1751433721601,-316.19229555,0.00016287,2]
[369011871,1751433725561,-185.5367052,0.00016287,2]
[369011872,1751433725584,-43.972467,0.00016288,2]
[369011873,1751433725607,-42.4339869,0.000163,2]
[369011874,1751433731038,-246.91886229,0.000163,2]
[369011875,1751433734587,-197.99027078,0.000163,2]
[369011876,1751433736547,1164.71779258,0.000161,2]
[369011877,1751433737975,-241.19631906,0.000163,2]
[369011878,1751433741821,-101.74200957,0.000163,2]
[369011879,1751433752289,439.18658984,0.000161,2]
[369011880,1751433765856,-198.25799043,0.00016293,2]
[369011881,1751433767961,-374.74750462,0.00016293,2]
[369011882,1751433769819,-178.53683612,0.00016293,2]
[369011883,1751433774130,-176.27815085,0.00016293,2]
[369011884,1751433775641,-156.16817681,0.00016293,2]
[369011885,1751433777270,-160.06051857,0.00016293,2]
[369011886,1751433780904,-188.30205291,0.00016293,2]
[369011887,1751433782573,1185.7306684,0.000161,2]
[369011888,1751433785009,-215.22982832,0.00016293,2]
[369011889,1751433787370,-211.07840343,0.00016292,2]
[369011890,1751433789657,-88.92159657,0.00016292,2]
[369011891,1751433789680,-152.7910054,0.00016293,2]
[369011892,1751433791842,-216.48245685,0.00016293,2]
[369011893,1751433797211,-242.4842994,0.00016293,2]
[369011894,1751433799535,-228.82799252,0.00016293,2]
[369011895,1751433801172,-269.20889081,0.00016293,2]
[369011896,1751433806393,-191.95058838,0.00016293,2]
[369011897,1751433810674,-200.14038151,0.00016293,2]
[369011898,1751433812941,-285.81734131,0.00016293,2]
[369011899,1751433815411,-151.48498827,0.00016293,2]
[369011900,1751433820811,-217.60135878,0.00016293,2]
[369011901,1751433822485,-300.0,0.00016293,2]
[369011902,1751433824060,-189.9104735,0.00016293,2]
[369011903,1751433827605,-225.10085961,0.00016293,2]
[369011904,1751433832899,-256.76557787,0.00016293,2]
[369011905,1751433837176,-217.74620979,0.00016293,2]
[369011906,1751433841214,-194.40421781,0.00016293,2]
[369011907,1751433845067,-159.69101139,0.00016292,2]
[369011908,1751433847316,-140.30898861,0.00016292,2]
[369011909,1751433847340,-75.41417159,0.00016293,2]
[369011910,1751433848849,-192.36429118,0.00016293,2]
[369011911,1751433853197,-175.29254862,0.00016293,2]
[369011912,1751433861028,-363.98273888,0.00016293,2]
[369011913,1751433863253,-161.64454495,0.00016293,2]
[369011914,1751433866195,-194.53859551,0.00016293,2]
[369011915,1751433869701,-272.97330849,0.00016293,2]
[369011916,1751433871853,-162.67832417,0.00016293,2]
[369011917,1751433874058,-179.14676252,0.00016293,2]
[369011918,1751433878250,-158.17491331,0.00016293,2]
[369011919,1751433880041,-263.64663,0.00016293,2]
[369011920,1751433881683,-190.47070433,0.00016293,2]
[369011921,1751433886669,-194.76731597,0.00016293,2]
[369011922,1751433888304,-168.15984708,0.00016293,2]
[369011923,1751433890027,-229.59818556,0.00016293,2]
[369011924,1751433894011,-199.39820536,0.00016293,2]
[369011925,1751433896355,-210.79128073,0.00016293,2]
[369011926,1751433898047,-274.03501251,0.00016293,2]
[369011932,1751433902147,1626.26875533,0.000161,2]
[369011933,1751433903189,-165.6186555,0.00016293,2]
[369011934,1751433905386,-221.63119881,0.00016293,2]
[369011998,1751433907097,-254.0251002,0.00016293,2]
[369012089,1751433911349,-165.03300639,0.00016285,2]
[369012090,1751433912837,-272.69776264,0.00016285,2]
[369012091,1751433914770,24900.0,0.00015379,2]
[369012092,1751433918569,-134.2821066,0.00016285,2]
[369012093,1751433918596,-105.3507768,0.00016293,2]
[369012107,1751433920138,-200.0,0.00016293,2]
[369012139,1751433922391,-234.7735769,0.00016293,2]
[369012140,1751433926025,-152.42595758,0.00016293,2]
[369012141,1751433928334,-241.03639327,0.00016293,2]
[369012142,1751433933381,-229.53296265,0.00016293,2]
[369012143,1751433935082,-188.78716171,0.00016293,2]
[369012144,1751433936607,-196.26695015,0.00016293,2]
[369012145,1751433938778,-158.2402005,0.000162,2]
[369012146,1751433938802,-100.48698585,0.00016293,2]
[369012147,1751433941223,-197.74972477,0.00016293,2]
[369012148,1751433942121,-722.98759946,0.00016293,2]
[369012149,1751433942862,-190.8558315,0.00016293,2]
[369012150,1751433945076,-928.5439212,0.00016293,2]
[369012151,1751433945104,-208.5911016,0.00016293,2]
[369012152,1751433947933,-216.62346755,0.00016293,2]
[369012153,1751433952014,-243.37653245,0.00016293,2]
[369012154,1751433954258,-158.86805727,0.00016293,2]
[369012155,1751433957563,-342.81067904,0.00016293,2]
[369012156,1751433960239,-186.37469606,0.00016293,2]
[369012157,1751433962331,-160.59957841,0.00016293,2]
[369012158,1751433965589,-157.48561556,0.00016293,2]
[369012159,1751433967116,-177.54706761,0.00016293,2]
[369012160,1751433970019,-171.93302246,0.00016293,2]
[369012161,1751433973781,-192.60683683,0.00016293,2]
[369012162,1751433976034,-170.66417123,0.00016293,2]
[369012163,1751433977610,-194.38763022,0.00016293,2]
[369012164,1751433981825,-182.22518021,0.00016293,2]
[369012165,1751433984697,-59.41449417,0.00016293,2]
[369012166,1751433984720,-94.51816393,0.000163,2]
[369012167,1751433990265,-193.56206695,0.000163,2]
[369012168,1751433994228,-165.30214541,0.000163,2]
[369012169,1751433996811,1000.0,0.0002517,60]
[369012171,1751434009567,1007.48,0.0002517,120]
[369012172,1751434029089,-210.84278259,0.000163,2]
[369012173,1751434029112,-300.0,0.00016374,2]
[369012174,1751434029134,-500.0,0.00016375,2]
[369012175,1751434029155,-500.0,0.00016375,2]
[369012176,1751434029177,-500.0,0.00016375,2]
[369012177,1751434029203,-176.24964483,0.00016375,2]
[369012178,1751434029227,-500.0,0.00016375,2]
[369012179,1751434029249,-500.0,0.00016375,2]
[369012180,1751434029271,-448.41791634,0.00016375,2]
[369012181,1751434029292,-500.0,0.00016375,2]
[369012182,1751434029313,-500.0,0.00016375,2]
[369012183,1751434029335,-500.0,0.00016375,2]
[369012184,1751434029359,-500.0,0.00016375,2]
[369012185,1751434029381,-500.0,0.00016375,2]
[369012186,1751434029403,-500.0,0.00016375,2]
[369012187,1751434029425,-161.7210421,0.00016375,2]
[369012188,1751434029446,-500.0,0.00016375,2]
[369012189,1751434029470,-500.0,0.00016375,2]
[369012190,1751434029496,-500.0,0.00016375,2]
[369012191,1751434029518,-500.0,0.00016375,2]
[369012192,1751434029541,-500.0,0.00016375,2]
[369012193,1751434029562,-551.12551487,0.00016375,2]
[369012194,1751434029585,-149.49437289,0.00016375,2]
[369012195,1751434034088,-90.63538667,0.00016375,2]
[369012196,1751434034111,-406.04012998,0.00016375,2]
[369012197,1751434036091,-235.25608923,0.00016375,2]
[369012198,1751434036113,-500.0,0.00016375,2]
[369012199,1751434036135,-177.63415051,0.00016375,2]
[369012200,1751434036163,-205.66362299,0.00016375,2]
[369012202,1751434064971,963.7219675,0.00015376,2]
[369012204,1751434129002,165.44011794,0.0002,120]
[369012205,1751434129299,1112.202791,0.0002517,120]
[369012206,1751434147099,-204.10767916,0.00016275,2]
[369012207,1751434148216,-317.06635521,0.00016275,2]
[369012208,1751434148239,-300.0,0.00016373,2]
[369012209,1751434148261,-572.83807509,0.00016374,2]
[369012210,1751434148283,-500.0,0.00016374,2]
[369012211,1751434148306,-279.05161285,0.00016374,2]
[369012212,1751434148329,-500.0,0.00016374,2]
[369012213,1751434148351,-500.0,0.00016374,2]
[369012214,1751434148374,-500.0,0.00016374,2]
[369012215,1751434148396,-500.0,0.00016374,2]
[369012216,1751434148420,-500.0,0.00016374,2]
[369012217,1751434148447,-500.0,0.00016374,2]
[369012218,1751434148471,-500.0,0.00016374,2]
[369012219,1751434148495,-500.0,0.00016374,2]
[369012220,1751434148517,-205.36242446,0.00016374,2]
[369012221,1751434148539,-500.0,0.00016374,2]
[369012223,1751434148566,-500.0,0.00016374,2]
[369012225,1751434148588,-500.0,0.00016374,2]
[369012226,1751434148610,-500.0,0.00016374,2]
[369012227,1751434148631,-500.0,0.00016374,2]
[369012229,1751434148655,-500.0,0.00016374,2]
[369012230,1751434148678,-500.0,0.00016374,2]
[369012231,1751434148703,-500.0,0.00016374,2]
[369012232,1751434148725,-500.0,0.00016374,2]
[369012233,1751434148748,-500.0,0.00016374,2]
[369012234,1751434148770,-500.0,0.00016374,2]
[369012235,1751434148792,-500.0,0.00016374,2]
[369012236,1751434148819,-500.0,0.00016374,2]
[369012237,1751434148842,-500.0,0.00016374,2]
[369012238,1751434148866,-455.50064694,0.00016374,2]
[369012240,1751434148888,-500.0,0.00016374,2]
[369012241,1751434148909,-500.0,0.00016374,2]
[369012242,1751434148931,-500.0,0.00016374,2]
[369012243,1751434148956,-500.0,0.00016374,2]
[369012244,1751434148977,-500.0,0.00016374,2]
[369012245,1751434148999,-500.0,0.00016374,2]
[369012246,1751434149023,-500.0,0.00016374,2]
[369012247,1751434149047,-500.0,0.00016374,2]
[369012248,1751434149070,-500.0,0.00016374,2]
[369012249,1751434149092,-310.14455533,0.00016374,2]
[369012250,1751434149116,-500.0,0.00016374,2]
[369012251,1751434149137,-500.0,0.00016374,2]
[369012252,1751434149160,-500.0,0.00016374,2]
[369012253,1751434149182,-500.0,0.00016374,2]
[369012254,1751434149204,-500.0,0.00016374,2]
[369012255,1751434149227,-650.0,0.00016374,2]
[369012256,1751434149256,-500.0,0.00016374,2]
[369012257,1751434149280,-500.0,0.00016374,2]
[369012258,1751434149302,-500.0,0.00016374,2]
[369012259,1751434149324,-500.0,0.00016374,2]
[369012260,1751434149348,-500.0,0.00016374,2]
[369012261,1751434149371,-500.0,0.00016374,2]
[369012262,1751434149395,-500.0,0.00016374,2]
[369012263,1751434149416,-500.0,0.00016374,2]
[369012264,1751434149438,-500.0,0.00016374,2]
[369012265,1751434149462,-500.0,0.00016374,2]
[369012266,1751434149485,-500.0,0.00016374,2]
[369012267,1751434149510,-500.0,0.00016374,2]
[369012268,1751434149532,-500.0,0.00016374,2]
[369012269,1751434149556,-500.0,0.00016374,2]
[369012270,1751434149579,-500.0,0.00016374,2]
[369012271,1751434149601,-500.0,0.00016374,2]
[369012272,1751434149624,-500.0,0.00016374,2]
[369012273,1751434149647,-500.0,0.00016374,2]
[369012274,1751434149670,-161.167836,0.00016374,2]
[369012275,1751434149694,-500.0,0.00016374,2]
[369012276,1751434149718,-500.0,0.00016374,2]
[369012277,1751434149742,-500.0,0.00016374,2]
[369012278,1751434149767,-500.0,0.00016374,2]
[369012279,1751434149792,-500.0,0.00016374,2]
[369012280,1751434149815,-500.0,0.00016374,2]
[369012281,1751434149839,-500.0,0.00016374,2]
[369012282,1751434149861,-500.0,0.00016374,2]
[369012283,1751434149887,-500.0,0.00016374,2]
[369012284,1751434149914,-500.0,0.00016374,2]
[369012285,1751434149947,-500.0,0.00016374,2]
[369012286,1751434149977,-500.0,0.00016374,2]
[369012287,1751434150003,-500.0,0.00016374,2]
[369012288,1751434150029,-500.0,0.00016374,2]
[369012289,1751434150054,-500.0,0.00016374,2]
[369012290,1751434150077,-500.0,0.00016374,2]
[369012291,1751434150101,-500.0,0.00016374,2]
[369012292,1751434150126,-500.0,0.00016374,2]
[369012293,1751434150151,-500.0,0.00016374,2]
[369012294,1751434150175,-500.0,0.00016374,2]
[369012295,1751434150199,-500.0,0.00016374,2]
[369012296,1751434150223,-500.0,0.00016374,2]
[369012297,1751434150246,-500.0,0.00016374,2]
[369012298,1751434150268,-500.0,0.00016374,2]
[369012299,1751434150291,-500.0,0.00016374,2]
[369012300,1751434150314,-500.0,0.00016374,2]
[369012301,1751434150337,-500.0,0.00016374,2]
[369012302,1751434150362,-500.0,0.00016374,2]
[369012303,1751434150386,-500.0,0.00016374,2]
[369012304,1751434150410,-500.0,0.00016374,2]
[369012305,1751434150433,-500.0,0.00016374,2]
[369012306,1751434150462,-500.0,0.00016374,2]
[369012307,1751434150485,-500.0,0.00016374,2]
[369012308,1751434150510,-500.0,0.00016374,2]
[369012309,1751434150536,-500.0,0.00016374,2]
[369012310,1751434150562,-500.0,0.00016374,2]
[369012311,1751434150782,-500.0,0.00016374,2]
[369012312,1751434150804,-500.0,0.00016374,2]
[369012313,1751434150826,-500.0,0.00016374,2]
[369012314,1751434150848,-500.0,0.00016374,2]
[369012315,1751434150868,-500.0,0.00016374,2]
[369012316,1751434150890,-500.0,0.00016374,2]
[369012317,1751434150911,-500.0,0.00016374,2]
[369012318,1751434150932,-455.14397691,0.00016374,2]
[369012319,1751434150958,-500.0,0.00016374,2]
[369012320,1751434150980,-500.0,0.00016374,2]
[369012321,1751434151001,-500.0,0.00016374,2]
[369012322,1751434151026,-500.0,0.00016374,2]
[369012323,1751434151050,-500.0,0.00016374,2]
[369012324,1751434151071,-500.0,0.00016374,2]
[369012325,1751434151093,-500.0,0.00016374,2]
[369012326,1751434151114,-500.0,0.00016374,2]
[369012327,1751434151135,-500.0,0.00016374,2]
[369012328,1751434151156,-500.0,0.00016374,2]
[369012329,1751434151178,-500.0,0.00016374,2]
[369012330,1751434151200,-724.14532444,0.00016374,2]
[369012331,1751434151221,-500.0,0.00016374,2]
[369012332,1751434151242,-500.0,0.00016374,2]
[369012333,1751434151265,-724.14532444,0.00016374,2]
[369012334,1751434151286,-500.0,0.00016374,2]
[369012335,1751434151307,-500.0,0.00016374,2]
[369012336,1751434151329,-500.0,0.00016374,2]
[369012337,1751434151353,-724.14532444,0.00016374,2]
[369012338,1751434151376,-500.0,0.00016374,2]
[369012339,1751434151401,-724.14532444,0.00016374,2]
[369012340,1751434151422,-500.0,0.00016374,2]